fUSD/lending_fUSD_20250823
["ID","MTS","AMOUNT","RATE_DAILY","PERIOD"]
[380990308,1755930645601,-400.0,0.00013698,2]
[380990309,1755930645612,-155.73895685,0.00013698,2]
[380990310,1755930645621,-400.0,0.00013698,2]
[380990311,1755930645631,-401.79903019,0.00013698,2]
[380990312,1755930645641,-402.44329039,0.00013698,2]
[380990313,1755930645651,-400.0,0.00013698,2]
[380990314,1755930645661,-400.0,0.00013698,2]
[380990315,1755930645671,-400.0,0.00013698,2]
[380990316,1755930645680,-400.0,0.00013698,2]
[380990317,1755930645690,-400.0,0.00013698,2]
[380990318,1755930645700,-400.0,0.00013698,2]
[380990319,1755930645710,-572.24,0.00013698,2]
[380990320,1755930645720,-400.0,0.00013698,2]
[380990321,1755930645729,-400.0,0.00013698,2]
[380990322,1755930645739,-400.0,0.00013698,2]
[380990323,1755930645749,-400.0,0.00013698,2]
[380990324,1755930645759,-400.0,0.00013698,2]
[380990325,1755930645769,-400.0,0.00013698,2]
[380990326,1755930645779,-743.91,0.00013698,2]
[380990327,1755930645789,-400.0,0.00013698,2]
[380990328,1755930645799,-526.46,0.00013698,2]
[380990329,1755930645809,-400.0,0.00013698,2]
[380990330,1755930645820,-400.0,0.00013698,2]
[380990332,1755930646199,-401.70918314,0.00013698,2]
[380990333,1755930646209,-400.0,0.00013698,2]
[380990334,1755930646219,-400.0,0.00013698,2]
[380990335,1755930646228,-400.0,0.00013698,2]
[380990336,1755930646238,-400.0,0.00013698,2]
[380990337,1755930646247,-400.0,0.00013698,2]
[380990338,1755930646256,-224.14466551,0.00013698,2]
[380990339,1755930646270,-400.0,0.00013698,2]
[380990340,1755930646279,-400.0,0.00013698,2]
[380990341,1755930646288,-749.52,0.00013698,2]
[380990342,1755930646298,-400.0,0.00013698,2]
[380990343,1755930646309,-400.0,0.00013698,2]
[380990344,1755930646318,-540.59,0.00013698,2]
[380990345,1755930646327,-410.49,0.00013698,2]
[380990346,1755930646337,-400.0,0.00013698,2]
[380990347,1755930646348,-400.0,0.00013698,2]
[380990348,1755930646358,-493.14,0.00013698,2]
[380990349,1755930646369,-400.0,0.00013698,2]
[380990350,1755930646378,-400.0,0.00013698,2]
[380990351,1755930646390,-400.0,0.00013698,2]
[380990352,1755930646399,-401.62351275,0.00013698,2]
[380990353,1755930646409,-920.84,0.00013698,2]
[380990354,1755930646418,-400.0,0.00013698,2]
[380990355,1755930646428,-400.0,0.00013698,2]
[380990356,1755930646437,-400.0,0.00013698,2]
[380990357,1755930646447,-566.63,0.00013698,2]
[380990358,1755930646456,-400.0,0.00013698,2]
[380990359,1755930646465,-432.17,0.00013698,2]
[380990360,1755930646474,-400.0,0.00013698,2]
[380990361,1755930646484,-400.0,0.00013698,2]
[380990362,1755930646493,-740.84,0.00013698,2]
[380990363,1755930646503,-783.8,0.00013698,2]
[380990364,1755930646512,-400.0,0.00013698,2]
[380990365,1755930646521,-517.07,0.00013698,2]
[380990366,1755930646531,-604.31,0.00013698,2]
[380990367,1755930646541,-1133.06,0.00013698,2]
[380990368,1755930646550,-401.34180732,0.00013698,2]
[380990369,1755930646560,-402.15427249,0.00013698,2]
[380990370,1755930646569,-400.0,0.00013698,2]
[380990371,1755930646578,-495.74,0.00013698,2]
[380990372,1755930646587,-402.27864359,0.00013698,2]
[380990373,1755930646597,-400.0,0.00013698,2]
[380990374,1755930646606,-400.0,0.00013698,2]
[380990375,1755930646618,-401.05621539,0.00013698,2]
[380990376,1755930646627,-400.0,0.00013698,2]
[380990377,1755930646637,-400.0,0.00013698,2]
[380990378,1755930646647,-413.56,0.00013698,2]
[380990379,1755930646656,-400.0,0.00013698,2]
[380990380,1755930646665,-400.0,0.00013698,2]
[380990381,1755930646674,-400.0,0.00013698,2]
[380990382,1755930646684,-400.0,0.00013698,2]
[380990383,1755930646693,-400.0,0.00013698,2]
[380990384,1755930646702,-400.0,0.00013698,2]
[380990385,1755930646711,-401.99337387,0.00013698,2]
[380990386,1755930646721,-402.26166787,0.00013698,2]
[380990387,1755930646730,-400.0,0.00013698,2]
[380990388,1755930646740,-400.0,0.00013698,2]
[380990389,1755930646749,-400.0,0.00013698,2]
[380990390,1755930646758,-696.19,0.00013698,2]
[380990391,1755930646767,-400.49874064,0.00013698,2]
[380990392,1755930646777,-448.63,0.00013698,2]
[380990393,1755930646786,-400.66017617,0.00013698,2]
[380990394,1755930646795,-401.51702026,0.00013698,2]
[380990395,1755930646805,-402.2955367,0.00013698,2]
[380990396,1755930646814,-409.77,0.00013698,2]
[380990397,1755930646824,-401.15728501,0.00013698,2]
[380990398,1755930646833,-400.8069759,0.00013698,2]
[380990399,1755930646844,-401.72930472,0.00013698,2]
[380990400,1755930646854,-400.0,0.00013698,2]
[380990401,1755930646864,-400.0,0.00013698,2]
[380990402,1755930646874,-400.0,0.00013698,2]
[380990403,1755930646885,-400.0,0.00013698,2]
[380990404,1755930646894,-400.0,0.00013698,2]
[380990405,1755930646904,-741.34,0.00013698,2]
[380990406,1755930646913,-428.59,0.00013698,2]
[380990407,1755930646922,-401.84126967,0.00013698,2]
[380990408,1755930646932,-773.01,0.00013698,2]
[380990409,1755930646942,-400.64997255,0.00013698,2]
[380990410,1755930646952,-654.73,0.00013698,2]
[380990411,1755930646962,-412.9,0.00013698,2]
[380990412,1755930646971,-400.0,0.00013698,2]
[380990413,1755930646981,-400.0,0.00013698,2]
[380990414,1755930646990,-400.46712066,0.00013698,2]
[380990415,1755930647000,-400.0,0.00013698,2]
[380990416,1755930647010,-400.0,0.00013698,2]
[380990417,1755930647019,-439.05,0.00013698,2]
[380990418,1755930647029,-400.0,0.00013698,2]
[380990419,1755930647039,-400.0,0.00013698,2]
[380990420,1755930647049,-805.82,0.00013698,2]
[380990421,1755930647059,-400.0,0.00013698,2]
[380990422,1755930647068,-400.0,0.00013698,2]
[380990423,1755930647078,-407.07,0.00013698,2]
[380990424,1755930647088,-733.47,0.00013698,2]
[380990425,1755930647099,-400.94759794,0.00013698,2]
[380990426,1755930647111,-400.0,0.00013698,2]
[380990427,1755930647122,-400.0,0.00013698,2]
[380990428,1755930647131,-400.28,0.00013698,2]
[380990429,1755930647141,-432.84,0.00013698,2]
[380990430,1755930647151,-834.46,0.00013698,2]
[380990431,1755930647160,-400.0,0.00013698,2]
[380990432,1755930647170,-400.0,0.00013698,2]
[380990433,1755930647179,-400.0,0.00013698,2]
[380990434,1755930647189,-728.67,0.00013698,2]
[380990435,1755930647198,-400.0,0.00013698,2]
[380990436,1755930647207,-400.0,0.00013698,2]
[380990437,1755930647217,-491.05,0.00013698,2]
[380990438,1755930647226,-400.0,0.00013698,2]
[380990439,1755930647236,-482.83,0.00013698,2]
[380990440,1755930647246,-426.08,0.00013698,2]
[380990441,1755930647256,-718.23,0.00013698,2]
[380990442,1755930647269,-400.0,0.00013698,2]
[380990443,1755930647278,-400.0,0.00013698,2]
[380990444,1755930647287,-401.88642405,0.00013698,2]
[380990445,1755930647297,-414.75,0.00013698,2]
[380990446,1755930647306,-400.0,0.00013698,2]
[380990447,1755930647316,-730.88,0.00013698,2]
[380990448,1755930647325,-525.23,0.00013698,2]
[380990449,1755930647335,-400.0,0.00013698,2]
[380990450,1755930647345,-400.0,0.00013698,2]
[380990451,1755930647355,-400.25541585,0.00013698,2]
[380990452,1755930647365,-400.0,0.00013698,2]
[380990453,1755930647375,-656.34,0.00013698,2]
[380990454,1755930647384,-400.0,0.00013698,2]
[380990455,1755930647394,-861.42,0.00013698,2]
[380990456,1755930647404,-400.0,0.00013698,2]
[380990457,1755930647414,-400.0,0.00013698,2]
[380990458,1755930647423,-400.0,0.00013698,2]
[380990459,1755930647433,-400.0,0.00013698,2]
[380990460,1755930647442,-628.73,0.00013698,2]
[380990461,1755930647452,-403.42415747,0.00013698,2]
[380990462,1755930647462,-400.0,0.00013698,2]
[380990463,1755930647472,-402.50966239,0.00013698,2]
[380990464,1755930647481,-400.0,0.00013698,2]
[380990465,1755930647490,-775.38,0.00013698,2]
[380990466,1755930647499,-400.0,0.00013698,2]
[380990467,1755930647508,-400.0,0.00013698,2]
[380990468,1755930647517,-400.0,0.00013698,2]
[380990469,1755930647527,-404.23,0.00013698,2]
[380990470,1755930647536,-713.07,0.00013698,2]
[380990471,1755930647546,-452.56,0.00013698,2]
[380990472,1755930647555,-400.0,0.00013698,2]
[380990473,1755930647565,-674.32,0.00013698,2]
[380990474,1755930647575,-400.0,0.00013698,2]
[380990475,1755930647585,-693.74,0.00013698,2]
[380990476,1755930647594,-400.0,0.00013698,2]
[380990477,1755930647603,-460.3,0.00013698,2]
[380990478,1755930647612,-400.0,0.00013698,2]
[380990479,1755930647624,-400.0,0.00013698,2]
[380990480,1755930647633,-400.0,0.00013698,2]
[380990481,1755930647642,-400.0,0.00013698,2]
[380990482,1755930647651,-400.0,0.00013698,2]
[380990483,1755930647661,-400.0,0.00013698,2]
[380990484,1755930647670,-400.0,0.00013698,2]
[380990485,1755930647679,-504.23874117,0.00013698,2]
[380990486,1755930647689,-400.0,0.00013698,2]
[380990487,1755930647698,-400.0,0.00013698,2]
[380990488,1755930647707,-651.66,0.00013698,2]
[380990489,1755930647716,-490.04,0.00013698,2]
[380990490,1755930647726,-423.85,0.00013698,2]
[380990491,1755930647735,-400.0,0.00013698,2]
[380990492,1755930647744,-400.0,0.00013698,2]
[380990493,1755930647754,-400.57241706,0.00013698,2]
[380990494,1755930647763,-597.2,0.00013698,2]
[380990495,1755930647772,-655.44,0.00013698,2]
[380990496,1755930647782,-400.0,0.00013698,2]
[380990497,1755930647791,-400.0,0.00013698,2]
[380990498,1755930647801,-400.0,0.00013698,2]
[380990499,1755930647810,-400.0,0.00013698,2]
[380990500,1755930647819,-400.0,0.00013698,2]
[380990501,1755930647829,-1022.82,0.00013698,2]
[380990502,1755930647840,-400.0,0.00013698,2]
[380990503,1755930647849,-400.0,0.00013698,2]
[380990504,1755930647860,-400.0,0.00013698,2]
[380990505,1755930647870,-470.46,0.00013698,2]
[380990506,1755930647880,-402.36144105,0.00013698,2]
[380990507,1755930647890,-400.0,0.00013698,2]
[380990508,1755930647900,-444.53,0.00013698,2]
[380990509,1755930647913,-401.75564441,0.00013698,2]
[380990510,1755930647922,-400.0,0.00013698,2]
[380990511,1755930647931,-400.0,0.00013698,2]
[380990512,1755930647941,-400.0,0.00013698,2]
[380990513,1755930647950,-451.36,0.00013698,2]
[380990514,1755930647960,-443.27,0.00013698,2]
[380990515,1755930647971,-400.0,0.00013698,2]
[380990516,1755930647983,-649.5,0.00013698,2]
[380990517,1755930647993,-400.0,0.00013698,2]
[380990518,1755930648003,-400.0,0.00013698,2]
[380990519,1755930648012,-636.13,0.00013698,2]
[380990520,1755930648021,-400.0,0.00013698,2]
[380990521,1755930648031,-480.27,0.00013698,2]
[380990522,1755930648040,-400.0,0.00013698,2]
[380990523,1755930648049,-600.17,0.00013698,2]
[380990524,1755930648059,-517.49,0.00013698,2]
[380990525,1755930648068,-400.0,0.00013698,2]
[380990526,1755930648077,-462.74497761,0.00013698,2]
[380990527,1755930648087,-466.17,0.00013698,2]
[380990528,1755930648096,-540.76,0.00013698,2]
[380990529,1755930648105,-400.0,0.00013698,2]
[380990530,1755930648115,-402.31893068,0.00013698,2]
[380990531,1755930648124,-400.0,0.00013698,2]
[380990532,1755930648134,-400.0,0.00013698,2]
[380990533,1755930648143,-400.0,0.00013698,2]
[380990534,1755930648153,-400.0,0.00013698,2]
[380990535,1755930648163,-753.31,0.00013698,2]
[380990536,1755930648172,-404.06,0.00013698,2]
[380990537,1755930648181,-597.64,0.00013698,2]
[380990538,1755930648191,-402.91320284,0.00013698,2]
[380990539,1755930648200,-400.0,0.00013698,2]
[380990540,1755930648211,-198.32504974,0.00013698,2]
[380990541,1755930648221,-461.34629585,0.00013698,2]
[380990542,1755930648230,-404.41,0.00013698,2]
[380990543,1755930648240,-458.82,0.00013698,2]
[380990544,1755930648250,-400.0,0.00013698,2]
[380990545,1755930648260,-400.0,0.00013698,2]
[380990546,1755930648274,-160.10739159,0.00013698,2]
[380990547,1755930648284,-402.28478799,0.00013698,2]
[380990548,1755930648293,-400.0,0.00013698,2]
[380990549,1755930648302,-400.5397524,0.00013698,2]
[380990550,1755930648313,-400.0,0.00013698,2]
[380990551,1755930648322,-420.73,0.00013698,2]
[380990552,1755930648331,-383.59009912,0.00013698,2]
[380990553,1755930648342,-400.0,0.00013698,2]
[380990554,1755930648352,-400.0,0.00013698,2]
[380990555,1755930648361,-400.0,0.00013698,2]
[380990556,1755930648372,-400.0,0.00013698,2]
[380990557,1755930648381,-400.0,0.00013698,2]
[380990558,1755930648391,-400.61599042,0.00013698,2]
[380990559,1755930648400,-898.28,0.00013698,2]
[380990560,1755930648410,-400.0,0.00013698,2]
[380990561,1755930648420,-400.92093074,0.00013698,2]
[380990562,1755930648430,-402.70807069,0.00013698,2]
[380990563,1755930648439,-400.0,0.00013698,2]
[380990564,1755930648449,-433.34,0.00013698,2]
[380990565,1755930648458,-400.0,0.00013698,2]
[380990566,1755930648468,-152.259471,0.00013698,2]
[380990567,1755930648478,-813.43,0.00013698,2]
[380990568,1755930648487,-400.0,0.00013698,2]
[380990569,1755930648497,-400.0,0.00013698,2]
[380990570,1755930648507,-400.0,0.00013698,2]
[380990571,1755930648516,-400.0,0.00013698,2]
[380990572,1755930648526,-400.0,0.00013698,2]
[380990573,1755930648536,-400.0,0.00013698,2]
[380990574,1755930648546,-401.95269947,0.00013698,2]
[380990575,1755930648556,-400.0,0.00013698,2]
[380990576,1755930648565,-589.73,0.00013698,2]
[380990577,1755930648575,-927.72,0.00013698,2]
[380990578,1755930648584,-400.0,0.00013698,2]
[380990579,1755930648595,-530.1,0.00013698,2]
[380990580,1755930648605,-683.39,0.00013698,2]
[380990581,1755930648615,-400.0,0.00013698,2]
[380990582,1755930648625,-400.0,0.00013698,2]
[380990583,1755930648634,-643.13,0.00013698,2]
[380990584,1755930648643,-484.79,0.00013698,2]
[380990585,1755930648652,-400.0,0.00013698,2]
[380990586,1755930648662,-400.0,0.00013698,2]
[380990587,1755930648671,-400.0,0.00013698,2]
[380990588,1755930648681,-400.0,0.00013698,2]
[380990589,1755930648690,-558.89,0.00013698,2]
[380990590,1755930648699,-417.61,0.00013698,2]
[380990591,1755930648708,-400.0,0.00013698,2]
[380990592,1755930648717,-400.0,0.00013698,2]
[380990593,1755930648727,-401.41463299,0.00013698,2]
[380990594,1755930648736,-433.09,0.00013698,2]
[380990595,1755930648745,-254.304402,0.00013698,2]
[380990596,1755930648755,-460.41,0.00013698,2]
[380990597,1755930648764,-400.0,0.00013698,2]
[380990598,1755930648774,-400.0,0.00013698,2]
[380990599,1755930648783,-400.0,0.00013698,2]
[380990600,1755930648793,-359.33380922,0.00013698,2]
[380990601,1755930648803,-463.42,0.00013698,2]
[380990602,1755930648812,-400.13,0.00013698,2]
[380990603,1755930648821,-400.0,0.00013698,2]
[380990604,1755930648830,-473.4,0.00013698,2]
[380990605,1755930648840,-401.16658661,0.00013698,2]
[380990606,1755930648849,-400.0,0.00013698,2]
[380990607,1755930648859,-400.0,0.00013698,2]
[380990608,1755930648868,-500.0,0.00013698,2]
[380990609,1755930648878,-500.0,0.00013698,2]
[380990610,1755930648887,-500.0,0.00013698,2]
[380990611,1755930648897,-400.0,0.00013698,2]
[380990612,1755930648906,-500.0,0.00013698,2]
[380990613,1755930648915,-500.0,0.00013698,2]
[380990614,1755930648925,-403.24,0.00013698,2]
[380990615,1755930648934,-537.84,0.00013698,2]
[380990616,1755930648944,-400.0,0.00013698,2]
[380990617,1755930648954,-400.0,0.00013698,2]
[380990618,1755930648963,-598.61,0.00013698,2]
[380990619,1755930648972,-659.98,0.00013698,2]
[380990620,1755930648982,-400.0,0.00013698,2]
[380990621,1755930648991,-400.0,0.00013698,2]
[380990622,1755930649001,-400.0,0.00013698,2]
[380990623,1755930649011,-559.14,0.00013698,2]
[380990624,1755930649020,-400.0,0.00013698,2]
[380990625,1755930649029,-666.69,0.00013698,2]
[380990626,1755930649039,-400.0,0.00013698,2]
[380990627,1755930649048,-1062.126313,0.00013698,2]
[380990628,1755930649057,-500.0,0.00013698,2]
[380990629,1755930649067,-400.0,0.00013698,2]
[380990630,1755930649077,-500.0,0.00013698,2]
[380990631,1755930649086,-500.0,0.00013698,2]
[380990632,1755930649095,-528.47367359,0.00013698,2]
[380990633,1755930649105,-400.0,0.00013698,2]
[380990634,1755930649114,-549.63,0.00013698,2]
[380990635,1755930649123,-551.78,0.00013698,2]
[380990636,1755930649133,-400.0,0.00013698,2]
[380990637,1755930649142,-504.46,0.00013698,2]
[380990638,1755930649152,-488.75,0.00013698,2]
[380990639,1755930649162,-400.0,0.00013698,2]
[380990640,1755930649172,-670.71,0.00013698,2]
[380990641,1755930649181,-163.636867,0.00013698,2]
[380990642,1755930649191,-498.06,0.00013698,2]
[380990643,1755930649200,-401.32068372,0.00013698,2]
[380990644,1755930649210,-400.0,0.00013698,2]
[380990645,1755930649219,-1574.58,0.00013698,2]
[380990646,1755930649229,-523.65,0.00013698,2]
[380990647,1755930649240,-400.0,0.00013698,2]
[380990648,1755930649249,-400.0,0.00013698,2]
[380990649,1755930649261,-400.0,0.00013698,2]
[380990650,1755930649272,-178.38243213,0.00013698,2]
[380990651,1755930649282,-690.06,0.00013698,2]
[380990652,1755930649499,-400.0,0.00013698,2]
[380990653,1755930649528,-483.37,0.00013698,2]
[380990654,1755930649538,-400.0,0.00013698,2]
[380990655,1755930649547,-403.40671211,0.00013698,2]
[380990656,1755930649557,-400.38920288,0.00013698,2]
[380990657,1755930649566,-906.04,0.00013698,2]
[380990658,1755930649576,-400.0,0.00013698,2]
[380990659,1755930649584,-702.42,0.00013698,2]
[380990660,1755930649593,-401.49321405,0.00013698,2]
[380990661,1755930649602,-400.0,0.00013698,2]
[380990662,1755930649611,-478.28,0.00013698,2]
[380990663,1755930649622,-463.08,0.00013698,2]
[380990664,1755930649631,-400.0,0.00013698,2]
[380990665,1755930649641,-896.65,0.00013698,2]
[380990666,1755930649650,-401.46468172,0.00013698,2]
[380990667,1755930649659,-522.33,0.00013698,2]
[380990668,1755930649668,-485.14,0.00013698,2]
[380990669,1755930649677,-400.0,0.00013698,2]
[380990670,1755930649686,-664.4,0.00013698,2]
[380990671,1755930649695,-463.63,0.00013698,2]
[380990672,1755930649704,-4517.39,0.00013698,2]
[380990673,1755930649713,-400.46,0.00013698,2]
[380990674,1755930649723,-400.0,0.00013698,2]
[380990675,1755930649732,-400.0,0.00013698,2]
[380990676,1755930649742,-400.0,0.00013698,2]
[380990677,1755930649752,-400.4286256,0.00013698,2]
[380990678,1755930649761,-400.0,0.00013698,2]
[380990679,1755930649769,-597.16,0.00013698,2]
[380990680,1755930649778,-634.29,0.00013698,2]
[380990681,1755930649788,-730.43,0.00013698,2]
[380990682,1755930649797,-400.0,0.00013698,2]
[380990683,1755930649806,-777.56,0.00013698,2]
[380990684,1755930649815,-400.0,0.00013698,2]
[380990685,1755930649824,-400.0,0.00013698,2]
[380990686,1755930649833,-406.13,0.00013698,2]
[380990687,1755930649842,-400.0,0.00013698,2]
[380990688,1755930649852,-585.18,0.00013698,2]
[380990689,1755930649861,-403.71918202,0.00013698,2]
[380990690,1755930649872,-400.0,0.00013698,2]
[380990691,1755930649882,-400.0,0.00013698,2]
[380990692,1755930649891,-406.67,0.00013698,2]
[380990693,1755930649900,-400.0,0.00013698,2]
[380990694,1755930649909,-400.0,0.00013698,2]
[380990695,1755930649919,-820.56,0.00013698,2]
[380990696,1755930649928,-629.89,0.00013698,2]
[380990697,1755930649937,-400.0,0.00013698,2]
[380990698,1755930649946,-654.77,0.00013698,2]
[380990699,1755930649955,-677.66,0.00013698,2]
[380990700,1755930649964,-400.0,0.00013698,2]
[380990701,1755930649973,-400.0,0.00013698,2]
[380990702,1755930649983,-504.2,0.00013698,2]
[380990703,1755930649992,-400.0,0.00013698,2]
[380990704,1755930650001,-700.52,0.00013698,2]
[380990705,1755930650010,-400.0,0.00013698,2]
[380990706,1755930650019,-400.0,0.00013698,2]
[380990707,1755930650028,-400.0,0.00013698,2]
[380990708,1755930650037,-522.25,0.00013698,2]
[380990709,1755930650048,-541.83,0.00013698,2]
[380990710,1755930650057,-400.0,0.00013698,2]
[380990711,1755930650066,-924.13,0.00013698,2]
[380990712,1755930650076,-626.52,0.00013698,2]
[380990713,1755930650085,-400.87860686,0.00013698,2]
[380990714,1755930650094,-491.97061151,0.00013698,2]
[380990715,1755930650104,-983.52,0.00013698,2]
[380990716,1755930650113,-400.0,0.00013698,2]
[380990717,1755930650125,-534.72,0.00013698,2]
[380990718,1755930650135,-400.0,0.00013698,2]
[380990719,1755930650144,-547.29077433,0.00013698,2]
[380990720,1755930650154,-400.0,0.00013698,2]
[380990721,1755930650164,-632.58,0.00013698,2]
[380990722,1755930650173,-810.94,0.00013698,2]
[380990723,1755930650182,-463.0,0.00013698,2]
[380990724,1755930650192,-513.8135975,0.00013698,2]
[380990725,1755930650201,-400.0,0.00013698,2]
[380990726,1755930650212,-1018.11,0.00013698,2]
[380990727,1755930650221,-459.77,0.00013698,2]
[380990728,1755930650230,-401.03078644,0.00013698,2]
[380990729,1755930650240,-400.0,0.00013698,2]
[380990730,1755930650249,-400.0,0.00013698,2]
[380990731,1755930650259,-400.0,0.00013698,2]
[380990732,1755930650271,-400.0,0.00013698,2]
[380990733,1755930650280,-402.05092896,0.00013698,2]
[380990734,1755930650289,-400.0,0.00013698,2]
[380990735,1755930650299,-398.61175072,0.00013698,2]
[380990736,1755930650309,-765.63,0.00013698,2]
[380990737,1755930650318,-400.0,0.00013698,2]
[380990738,1755930650328,-814.39,0.00013698,2]
[380990739,1755930650339,-400.0,0.00013698,2]
[380990740,1755930650348,-506.42,0.00013698,2]
[380990741,1755930650358,-400.0,0.00013698,2]
[380990742,1755930650368,-158.11194405,0.00013698,2]
[380990743,1755930650377,-464.59,0.00013698,2]
[380990744,1755930650387,-400.0,0.00013698,2]
[380990745,1755930650396,-400.0,0.00013698,2]
[380990746,1755930650407,-400.0,0.00013698,2]
[380990747,1755930650416,-744.29,0.00013698,2]
[380990748,1755930650425,-707.25,0.00013698,2]
[380990749,1755930650435,-460.0,0.00013698,2]
[380990750,1755930650444,-400.0,0.00013698,2]
[380990751,1755930650453,-715.14,0.00013698,2]
[380990752,1755930650463,-414.09,0.00013698,2]
[380990753,1755930650473,-1000.0,0.00013698,2]
[380990754,1755930650483,-738.62,0.00013698,2]
[380990755,1755930650492,-716.85,0.00013698,2]
[380990756,1755930650501,-400.0,0.00013698,2]
[380990757,1755930650510,-802.16,0.00013698,2]
[380990758,1755930650520,-400.0,0.00013698,2]
[380990759,1755930650529,-632.2,0.00013698,2]
[380990760,1755930650539,-401.62712036,0.00013698,2]
[380990761,1755930650548,-933.05,0.00013698,2]
[380990762,1755930650557,-667.21,0.00013698,2]
[380990763,1755930650566,-400.0,0.00013698,2]
[380990764,1755930650575,-400.0,0.00013698,2]
[380990765,1755930650584,-841.3,0.00013698,2]
[380990766,1755930650593,-400.0,0.00013698,2]
[380990767,1755930650602,-401.01376755,0.00013698,2]
[380990768,1755930650612,-400.0,0.00013698,2]
[380990769,1755930650623,-400.0,0.00013698,2]
[380990770,1755930650632,-400.0,0.00013698,2]
[380990771,1755930650641,-678.61,0.00013698,2]
[380990772,1755930650651,-400.0,0.00013698,2]
[380990773,1755930650660,-400.0,0.00013698,2]
[380990774,1755930650669,-449.99,0.00013698,2]
[380990775,1755930650678,-430.74,0.00013698,2]
[380990776,1755930650688,-400.0,0.00013698,2]
[380990777,1755930650697,-519.22,0.00013698,2]
[380990778,1755930650706,-753.87,0.00013698,2]
[380990779,1755930650716,-400.0,0.00013698,2]
[380990780,1755930650727,-400.0,0.00013698,2]
[380990781,1755930650736,-578.08,0.00013698,2]
[380990782,1755930650746,-400.0,0.00013698,2]
[380990783,1755930650755,-400.0,0.00013698,2]
[380990784,1755930650765,-762.2,0.00013698,2]
[380990785,1755930650774,-552.89,0.00013698,2]
[380990786,1755930650784,-400.0,0.00013698,2]
[380990787,1755930650793,-1130.07,0.00013698,2]
[380990788,1755930650803,-400.0,0.00013698,2]
[380990789,1755930650813,-400.0,0.00013698,2]
[380990790,1755930650822,-756.24,0.00013698,2]
[380990791,1755930650831,-400.0,0.00013698,2]
[380990792,1755930650840,-400.62548767,0.00013698,2]
[380990793,1755930650850,-400.0,0.00013698,2]
[380990794,1755930650859,-832.04,0.00013698,2]
[380990795,1755930650870,-400.0,0.00013698,2]
[380990796,1755930650879,-734.03,0.00013698,2]
[380990797,1755930650888,-881.58,0.00013698,2]
[380990798,1755930650903,-607.46,0.00013698,2]
[380990799,1755930650925,-400.37744465,0.00013698,2]
[380990800,1755930650942,-403.96,0.00013698,2]
[380990801,1755930650962,-1082.64,0.00013698,2]
[380990802,1755930650980,-400.0,0.00013698,2]
[380990803,1755930650995,-400.0,0.00013698,2]
[380990804,1755930651015,-641.12,0.00013698,2]
[380990805,1755930651034,-400.0,0.00013698,2]
[380990806,1755930651052,-400.0,0.00013698,2]
[380990807,1755930651070,-400.0,0.00013698,2]
[380990808,1755930651090,-711.56,0.00013698,2]